[Event "Titled Tuesday Blitz July 4 Late 2023"]
[White "Korpics, Zsolt"]
[Black "Winkels, Marcel"]
[WhiteFideId "705241"]
[BlackFideId "1003887"]
[WhiteElo "2319"]
[BlackElo "2084"]
[Result "1-0"]
[Round "6"]
[TimeControl "180+2"]
[Date "2023.07.04"]
[WhiteClock "0:00:05"]
[BlackClock "0:00:00"]
[Board "144"]

1. e4 {[%clk 0:03:00]}  c5 {[%clk 0:02:58]} 2. Nf3 {[%clk 0:03:01]}  e6 {[%clk 0:02:57]} 3. d4 {[%clk 0:03:01]}  cxd4 {[%clk 0:02:57]} 4. Nxd4 {[%clk 0:03:01]}  Nc6 {[%clk 0:02:57]} 5. Nc3 {[%clk 0:03:02]}  Qc7 {[%clk 0:02:57]} 6. Be3 {[%clk 0:03:01]}  a6 {[%clk 0:02:57]} 7. Qf3 {[%clk 0:03:01]}  Bd6 {[%clk 0:02:36]} 8. O-O-O {[%clk 0:02:58]}  Be5 {[%clk 0:02:29]} 9. Nxc6 {[%clk 0:02:36]}  bxc6 {[%clk 0:02:16]} 10. Bd4 {[%clk 0:02:34]}  Nf6 {[%clk 0:02:10]} 11. Bxe5 {[%clk 0:02:23]}  Qxe5 {[%clk 0:02:09]} 12. g4 {[%clk 0:02:07]}  d5 {[%clk 0:01:52]} 13. exd5 {[%clk 0:02:00]}  cxd5 {[%clk 0:01:51]} 14. h4 {[%clk 0:01:58]}  O-O {[%clk 0:01:41]} 15. Bd3 {[%clk 0:01:57]}  Bb7 {[%clk 0:01:27]} 16. g5 {[%clk 0:01:43]}  Ne4 {[%clk 0:01:25]} 17. Bxe4 {[%clk 0:01:01]}  dxe4 {[%clk 0:01:24]} 18. Qe3 {[%clk 0:01:02]}  Rab8 {[%clk 0:01:20]} 19. Rhe1 {[%clk 0:00:59]}  Bd5 {[%clk 0:01:13]} 20. f3 {[%clk 0:00:56]}  Bxa2 {[%clk 0:01:02]} 21. fxe4 {[%clk 0:00:52]}  Rfc8 {[%clk 0:00:51]} 22. Rd7 {[%clk 0:00:42]}  Qa5 {[%clk 0:00:23]} 23. Rf1 {[%clk 0:00:18]}  Bc4 {[%clk 0:00:22]} 24. Rfxf7 {[%clk 0:00:16]}  Qe5 {[%clk 0:00:18]} 25. Rxg7+ {[%clk 0:00:15]}  Qxg7 {[%clk 0:00:18]} 26. Rxg7+ {[%clk 0:00:16]}  Kxg7 {[%clk 0:00:18]} 27. Qd4+ {[%clk 0:00:16]}  Kg8 {[%clk 0:00:18]} 28. h5 {[%clk 0:00:15]}  Rb4 {[%clk 0:00:13]} 29. h6 {[%clk 0:00:14]}  Rb7 {[%clk 0:00:12]} 30. Qf6 {[%clk 0:00:11]}  Rf7 {[%clk 0:00:10]} 31. Qe5 {[%clk 0:00:10]}  Rf1+ {[%clk 0:00:09]} 32. Kd2 {[%clk 0:00:10]}  Rf2+ {[%clk 0:00:09]} 33. Ke3 {[%clk 0:00:09]}  Rf7 {[%clk 0:00:09]} 34. b3 {[%clk 0:00:05]}  Bb5 {[%clk 0:00:06]} 35. Nxb5 {[%clk 0:00:01]}  axb5 {[%clk 0:00:06]} 36. Qxe6 {[%clk 0:00:01]}  Rxc2 {[%clk 0:00:06]} 37. g6 {[%clk 0:00:02]}  hxg6 {[%clk 0:00:04]} 38. Qxg6+ {[%clk 0:00:03]}  Kf8 {[%clk 0:00:04]} 39. h7 {[%clk 0:00:03]}  Rc3+ {[%clk 0:00:02]} 40. Kd4 {[%clk 0:00:03]}  Rh3 {[%clk 0:00:02]} 41. Qg8+ {[%clk 0:00:03]}  Ke7 {[%clk 0:00:01]} 42. h8=Q {[%clk 0:00:04]}  Rxh8 {[%clk 0:00:00]} 43. Qxh8 {[%clk 0:00:05]} 1-0


[Site "https://www.chess.com"]

[Event "Titled Tuesday Blitz July 4 Late 2023"]
[White "Upper, John"]
[Black "Sokolov, Andrei"]
[WhiteFideId "2606437"]
[BlackFideId "11600306"]
[WhiteElo "1933"]
[BlackElo "2268"]
[Result "0-1"]
[Round "6"]
[TimeControl "180+2"]
[Date "2023.07.04"]
[WhiteClock "0:00:02"]
[BlackClock "0:00:06"]
[Board "147"]

1. Nf3 {[%clk 0:03:00]}  d5 {[%clk 0:03:00]} 2. d4 {[%clk 0:03:00]}  Bf5 {[%clk 0:03:00]} 3. c4 {[%clk 0:02:58]}  c6 {[%clk 0:03:00]} 4. e3 {[%clk 0:02:56]}  e6 {[%clk 0:02:56]} 5. Nc3 {[%clk 0:02:56]}  Nd7 {[%clk 0:02:54]} 6. Bd3 {[%clk 0:02:56]}  Bxd3 {[%clk 0:02:53]} 7. Qxd3 {[%clk 0:02:57]}  Ngf6 {[%clk 0:02:39]} 8. O-O {[%clk 0:02:56]}  Bd6 {[%clk 0:02:40]} 9. e4 {[%clk 0:02:55]}  dxe4 {[%clk 0:02:38]} 10. Nxe4 {[%clk 0:02:56]}  Nxe4 {[%clk 0:02:38]} 11. Qxe4 {[%clk 0:02:57]}  Nf6 {[%clk 0:02:38]} 12. Qd3 {[%clk 0:02:53]}  O-O {[%clk 0:02:37]} 13. Bg5 {[%clk 0:02:52]}  Be7 {[%clk 0:02:35]} 14. Rfd1 {[%clk 0:02:44]}  Qb6 {[%clk 0:02:30]} 15. b3 {[%clk 0:02:26]}  Rfd8 {[%clk 0:02:29]} 16. h3 {[%clk 0:02:18]}  c5 {[%clk 0:02:25]} 17. Be3 {[%clk 0:02:06]}  Qc7 {[%clk 0:02:05]} 18. Qc2 {[%clk 0:02:03]}  cxd4 {[%clk 0:01:52]} 19. Bxd4 {[%clk 0:02:00]}  b5 {[%clk 0:01:47]} 20. Be5 {[%clk 0:01:52]}  Qc6 {[%clk 0:01:43]} 21. Nd4 {[%clk 0:01:45]}  Qc5 {[%clk 0:01:43]} 22. Bxf6 {[%clk 0:01:06]}  Bxf6 {[%clk 0:01:43]} 23. Nxb5 {[%clk 0:01:06]}  Bxa1 {[%clk 0:01:37]} 24. Rxa1 {[%clk 0:01:06]}  Rac8 {[%clk 0:01:30]} 25. Qe2 {[%clk 0:00:57]}  a6 {[%clk 0:01:23]} 26. Nc3 {[%clk 0:00:57]}  Qd4 {[%clk 0:01:17]} 27. Rc1 {[%clk 0:00:52]}  Qd2 {[%clk 0:01:15]} 28. Qf1 {[%clk 0:00:46]}  Qb2 {[%clk 0:00:56]} 29. g4 {[%clk 0:00:30]}  Rd2 {[%clk 0:00:51]} 30. Ne4 {[%clk 0:00:29]}  Re2 {[%clk 0:00:49]} 31. Nd6 {[%clk 0:00:20]}  Rd8 {[%clk 0:00:45]} 32. Rd1 {[%clk 0:00:20]}  Rd2 {[%clk 0:00:40]} 33. Rxd2 {[%clk 0:00:19]}  Qxd2 {[%clk 0:00:40]} 34. c5 {[%clk 0:00:18]}  Qd5 {[%clk 0:00:27]} 35. Qxa6 {[%clk 0:00:15]}  Qxc5 {[%clk 0:00:26]} 36. Nc4 {[%clk 0:00:14]}  Rd1+ {[%clk 0:00:17]} 37. Kg2 {[%clk 0:00:11]}  Qd5+ {[%clk 0:00:16]} 38. Kh2 {[%clk 0:00:09]}  Rh1+ {[%clk 0:00:09]} 39. Kg3 {[%clk 0:00:09]}  Qd3+ {[%clk 0:00:08]} 40. Kg2 {[%clk 0:00:06]}  Qf1+ {[%clk 0:00:07]} 41. Kf3 {[%clk 0:00:04]}  Rxh3+ {[%clk 0:00:07]} 42. Ke4 {[%clk 0:00:04]}  Qd3+ {[%clk 0:00:06]} 43. Ke5 {[%clk 0:00:02]}  Qd5+ {[%clk 0:00:06]} 44. Kf4 {[%clk 0:00:02]}  Rf3# {[%clk 0:00:06]} 0-1


[Site "https://www.chess.com"]

[Event "Titled Tuesday Blitz July 4 Late 2023"]
[White "Cardenas Carbajal, Nilson"]
[Black "Broca Jimenez, Fernando"]
[WhiteFideId "8401128"]
[BlackFideId "5104742"]
[WhiteElo "2104"]
[BlackElo "2250"]
[Result "1-0"]
[Round "6"]
[TimeControl "180+2"]
[Date "2023.07.04"]
[WhiteClock "0:00:50"]
[BlackClock "0:00:13"]
[Board "150"]

1. e4 {[%clk 0:03:00]}  c5 {[%clk 0:02:59]} 2. d4 {[%clk 0:02:59]}  cxd4 {[%clk 0:02:57]} 3. c3 {[%clk 0:03:00]}  Nf6 {[%clk 0:02:58]} 4. e5 {[%clk 0:03:00]}  Nd5 {[%clk 0:02:58]} 5. Nf3 {[%clk 0:03:00]}  Nc6 {[%clk 0:02:58]} 6. cxd4 {[%clk 0:03:00]}  d6 {[%clk 0:02:54]} 7. Bc4 {[%clk 0:03:00]}  Nb6 {[%clk 0:02:54]} 8. Bb5 {[%clk 0:03:00]}  dxe5 {[%clk 0:02:39]} 9. Nxe5 {[%clk 0:02:59]}  Bd7 {[%clk 0:02:39]} 10. Nxd7 {[%clk 0:02:57]}  Qxd7 {[%clk 0:02:37]} 11. Nc3 {[%clk 0:02:58]}  a6 {[%clk 0:02:34]} 12. Bxc6 {[%clk 0:02:53]}  Qxc6 {[%clk 0:02:35]} 13. d5 {[%clk 0:02:50]}  Qc4 {[%clk 0:02:32]} 14. Be3 {[%clk 0:02:44]}  Nd7 {[%clk 0:02:10]} 15. Rc1 {[%clk 0:02:41]}  e6 {[%clk 0:01:20]} 16. b3 {[%clk 0:02:32]}  Qb4 {[%clk 0:01:03]} 17. dxe6 {[%clk 0:02:29]}  fxe6 {[%clk 0:01:02]} 18. O-O {[%clk 0:02:20]}  Rd8 {[%clk 0:00:48]} 19. Re1 {[%clk 0:01:41]}  Be7 {[%clk 0:00:41]} 20. Qh5+ {[%clk 0:01:33]}  g6 {[%clk 0:00:37]} 21. Qh3 {[%clk 0:01:30]}  Kf7 {[%clk 0:00:13]} 22. Bh6 {[%clk 0:00:52]}  Bf6 {[%clk 0:00:13]} 23. Qxe6# {[%clk 0:00:50]} 1-0


[Site "https://www.chess.com"]

[Event "Titled Tuesday Blitz July 4 Late 2023"]
[White "Sainz Aguirre, Ignacio"]
[Black "Thiel, Thomas"]
[WhiteFideId "5101727"]
[BlackFideId "4615964"]
[WhiteElo "1947"]
[BlackElo "2204"]
[Result "0-1"]
[Round "6"]
[TimeControl "180+2"]
[Date "2023.07.04"]
[WhiteClock "0:00:00"]
[BlackClock "0:01:57"]
[Board "151"]

1. e4 {[%clk 0:02:14]}  d5 {[%clk 0:02:58]} 2. exd5 {[%clk 0:02:13]}  Nf6 {[%clk 0:02:58]} 3. d4 {[%clk 0:02:12]}  Nxd5 {[%clk 0:02:58]} 4. Nf3 {[%clk 0:02:11]}  g6 {[%clk 0:02:58]} 5. Be2 {[%clk 0:02:03]}  Bg7 {[%clk 0:02:55]} 6. O-O {[%clk 0:02:02]}  O-O {[%clk 0:02:55]} 7. h3 {[%clk 0:02:00]}  Nc6 {[%clk 0:02:51]} 8. c4 {[%clk 0:01:51]}  Nb6 {[%clk 0:02:50]} 9. Be3 {[%clk 0:01:48]}  e5 {[%clk 0:02:43]} 10. d5 {[%clk 0:01:45]}  Na5 {[%clk 0:02:42]} 11. Nbd2 {[%clk 0:01:29]}  e4 {[%clk 0:02:41]} 12. Nd4 {[%clk 0:01:19]}  c6 {[%clk 0:02:39]} 13. b4 {[%clk 0:01:10]}  c5 {[%clk 0:02:35]} 14. bxc5 {[%clk 0:00:56]}  Nd7 {[%clk 0:02:34]} 15. Nxe4 {[%clk 0:00:52]}  Re8 {[%clk 0:02:23]} 16. Nd6 {[%clk 0:00:41]}  Rf8 {[%clk 0:02:21]} 17. N4b5 {[%clk 0:00:18]}  Bxa1 {[%clk 0:02:04]} 18. Qxa1 {[%clk 0:00:18]}  a6 {[%clk 0:02:04]} 19. Bh6 {[%clk 0:00:16]}  f6 {[%clk 0:02:04]} 20. Nxc8 {[%clk 0:00:13]}  Rxc8 {[%clk 0:01:58]} 21. Nd6 {[%clk 0:00:13]}  Rc7 {[%clk 0:01:58]} 22. Bxf8 {[%clk 0:00:09]}  Qxf8 {[%clk 0:01:59]} 23. Bg4 {[%clk 0:00:00]}  Nxc5 {[%clk 0:01:57]} 0-1


[Site "https://www.chess.com"]

[Event "Titled Tuesday Blitz July 4 Late 2023"]
[White "Howell, David W L"]
[Black "Lutz, Igor Oscar"]
[WhiteFideId "410608"]
[BlackFideId "2110806"]
[WhiteElo "2997"]
[BlackElo "1977"]
[Result "1-0"]
[Round "6"]
[TimeControl "180+2"]
[Date "2023.07.04"]
[WhiteClock "0:02:08"]
[BlackClock "0:01:28"]
[Board "152"]

1. g3 {[%clk 0:02:50]}  c6 {[%clk 0:02:59]} 2. c4 {[%clk 0:02:47]}  d5 {[%clk 0:02:59]} 3. Nf3 {[%clk 0:02:47]}  e6 {[%clk 0:02:59]} 4. Bg2 {[%clk 0:02:46]}  Nf6 {[%clk 0:02:59]} 5. O-O {[%clk 0:02:45]}  Nbd7 {[%clk 0:03:00]} 6. d4 {[%clk 0:02:45]}  Be7 {[%clk 0:02:50]} 7. Qc2 {[%clk 0:02:46]}  O-O {[%clk 0:02:50]} 8. Nbd2 {[%clk 0:02:46]}  b6 {[%clk 0:02:47]} 9. e4 {[%clk 0:02:46]}  Bb7 {[%clk 0:02:44]} 10. e5 {[%clk 0:02:46]}  Ne8 {[%clk 0:02:45]} 11. cxd5 {[%clk 0:02:46]}  cxd5 {[%clk 0:02:46]} 12. Re1 {[%clk 0:02:43]}  Rc8 {[%clk 0:02:46]} 13. Qd1 {[%clk 0:02:43]}  f6 {[%clk 0:02:38]} 14. exf6 {[%clk 0:02:41]}  Bxf6 {[%clk 0:02:37]} 15. Rxe6 {[%clk 0:02:40]}  Nc7 {[%clk 0:02:35]} 16. Re1 {[%clk 0:02:38]}  Nb5 {[%clk 0:02:29]} 17. Nf1 {[%clk 0:02:29]}  Rc4 {[%clk 0:02:21]} 18. Ne3 {[%clk 0:02:27]}  Rc7 {[%clk 0:02:10]} 19. Ng4 {[%clk 0:02:18]}  Be7 {[%clk 0:01:32]} 20. Qe2 {[%clk 0:02:12]}  Bd6 {[%clk 0:01:28]} 21. Qxb5 {[%clk 0:02:08]} 1-0


[Site "https://www.chess.com"]

[Event "Titled Tuesday Blitz July 4 Late 2023"]
[White "Alimpic, Aleksa"]
[Black "Tqebuchava, Zurab"]
[WhiteFideId "974323"]
[BlackFideId "13601113"]
[WhiteElo "2342"]
[BlackElo "2056"]
[Result "0-1"]
[Round "6"]
[TimeControl "180+2"]
[Date "2023.07.04"]
[WhiteClock "0:00:00"]
[BlackClock "0:00:03"]
[Board "154"]

1. Nf3 {[%clk 0:03:00]}  d6 {[%clk 0:02:55]} 2. d4 {[%clk 0:02:57]}  g6 {[%clk 0:02:53]} 3. g3 {[%clk 0:02:56]}  Bg7 {[%clk 0:02:53]} 4. Bg2 {[%clk 0:02:56]}  Nf6 {[%clk 0:02:52]} 5. O-O {[%clk 0:02:56]}  O-O {[%clk 0:02:53]} 6. a4 {[%clk 0:02:55]}  a5 {[%clk 0:02:51]} 7. Nc3 {[%clk 0:02:55]}  c6 {[%clk 0:02:51]} 8. e4 {[%clk 0:02:54]}  Bg4 {[%clk 0:02:50]} 9. h3 {[%clk 0:02:51]}  Bxf3 {[%clk 0:02:49]} 10. Bxf3 {[%clk 0:02:51]}  e5 {[%clk 0:02:49]} 11. dxe5 {[%clk 0:02:48]}  dxe5 {[%clk 0:02:48]} 12. Qe2 {[%clk 0:02:36]}  Nbd7 {[%clk 0:02:46]} 13. Rd1 {[%clk 0:02:36]}  Qc7 {[%clk 0:02:39]} 14. Be3 {[%clk 0:02:32]}  h6 {[%clk 0:02:33]} 15. Rd2 {[%clk 0:02:28]}  Rfd8 {[%clk 0:02:21]} 16. Rad1 {[%clk 0:02:28]}  Nf8 {[%clk 0:02:06]} 17. Qc4 {[%clk 0:01:53]}  Ne6 {[%clk 0:01:58]} 18. Qb3 {[%clk 0:01:37]}  Rxd2 {[%clk 0:01:54]} 19. Rxd2 {[%clk 0:01:38]}  Nd7 {[%clk 0:01:50]} 20. Bg4 {[%clk 0:01:23]}  Nd4 {[%clk 0:01:43]} 21. Qc4 {[%clk 0:01:03]}  h5 {[%clk 0:01:26]} 22. Bd1 {[%clk 0:00:48]}  Nf8 {[%clk 0:01:16]} 23. Kg2 {[%clk 0:00:44]}  Rd8 {[%clk 0:01:02]} 24. Ne2 {[%clk 0:00:39]}  Nde6 {[%clk 0:00:54]} 25. h4 {[%clk 0:00:34]}  Rxd2 {[%clk 0:00:52]} 26. Bxd2 {[%clk 0:00:35]}  Kh7 {[%clk 0:00:37]} 27. Be3 {[%clk 0:00:31]}  Bh6 {[%clk 0:00:35]} 28. Bxh6 {[%clk 0:00:30]}  Kxh6 {[%clk 0:00:34]} 29. c3 {[%clk 0:00:21]}  Qd8 {[%clk 0:00:31]} 30. Bc2 {[%clk 0:00:21]}  Qb6 {[%clk 0:00:28]} 31. Qb3 {[%clk 0:00:17]}  Qxb3 {[%clk 0:00:25]} 32. Bxb3 {[%clk 0:00:17]}  Kg7 {[%clk 0:00:24]} 33. Kf3 {[%clk 0:00:16]}  Nc5 {[%clk 0:00:24]} 34. Bc2 {[%clk 0:00:16]}  Nfe6 {[%clk 0:00:23]} 35. Ke3 {[%clk 0:00:15]}  Kf6 {[%clk 0:00:23]} 36. f4 {[%clk 0:00:13]}  Nd7 {[%clk 0:00:19]} 37. Ng1 {[%clk 0:00:09]}  exf4+ {[%clk 0:00:16]} 38. gxf4 {[%clk 0:00:10]}  Ke7 {[%clk 0:00:14]} 39. Nf3 {[%clk 0:00:09]}  Nf6 {[%clk 0:00:14]} 40. Ne5 {[%clk 0:00:04]}  Nc5 {[%clk 0:00:09]} 41. b4 {[%clk 0:00:04]}  axb4 {[%clk 0:00:07]} 42. cxb4 {[%clk 0:00:05]}  Ncd7 {[%clk 0:00:08]} 43. Nxd7 {[%clk 0:00:04]}  Kxd7 {[%clk 0:00:08]} 44. Kd4 {[%clk 0:00:03]}  Ng4 {[%clk 0:00:06]} 45. Bb3 {[%clk 0:00:03]}  Ke7 {[%clk 0:00:03]} 46. b5 {[%clk 0:00:02]}  cxb5 {[%clk 0:00:02]} 47. axb5 {[%clk 0:00:03]}  Nh2 {[%clk 0:00:02]} 48. Kd5 {[%clk 0:00:02]}  Nf3 {[%clk 0:00:02]} 49. e5 {[%clk 0:00:00]}  Nxh4 {[%clk 0:00:03]} 0-1


[Site "https://www.chess.com"]

[Event "Titled Tuesday Blitz July 4 Late 2023"]
[White "Phillips, Rene"]
[Black "Alexikov, Alexander"]
[WhiteFideId "2056275"]
[BlackFideId "14103958"]
[WhiteElo "2014"]
[BlackElo "2267"]
[Result "0-1"]
[Round "6"]
[TimeControl "180+2"]
[Date "2023.07.04"]
[WhiteClock "0:01:54"]
[BlackClock "0:01:32"]
[Board "155"]

1. d4 {[%clk 0:03:00]}  Nf6 {[%clk 0:02:57]} 2. Bf4 {[%clk 0:03:01]}  g6 {[%clk 0:02:57]} 3. e3 {[%clk 0:03:01]}  Bg7 {[%clk 0:02:56]} 4. Nf3 {[%clk 0:03:02]}  d6 {[%clk 0:02:56]} 5. h3 {[%clk 0:03:02]}  O-O {[%clk 0:02:55]} 6. a4 {[%clk 0:03:02]}  c5 {[%clk 0:02:49]} 7. c3 {[%clk 0:03:01]}  Nc6 {[%clk 0:02:48]} 8. Nbd2 {[%clk 0:03:00]}  Bf5 {[%clk 0:02:45]} 9. dxc5 {[%clk 0:02:56]}  dxc5 {[%clk 0:02:43]} 10. Bb5 {[%clk 0:02:56]}  Rc8 {[%clk 0:02:37]} 11. O-O {[%clk 0:02:55]}  a6 {[%clk 0:02:34]} 12. Be2 {[%clk 0:02:53]}  Bd3 {[%clk 0:02:16]} 13. Nc4 {[%clk 0:02:49]}  Bxe2 {[%clk 0:02:09]} 14. Qxe2 {[%clk 0:02:49]}  Nd5 {[%clk 0:01:56]} 15. Bg5 {[%clk 0:02:42]}  h6 {[%clk 0:01:53]} 16. Bh4 {[%clk 0:02:41]}  Qd7 {[%clk 0:01:37]} 17. Rfd1 {[%clk 0:02:40]}  Qe6 {[%clk 0:01:37]} 18. Bg3 {[%clk 0:02:30]}  Rcd8 {[%clk 0:01:35]} 19. Bc7 {[%clk 0:01:54]}  Nxc7 {[%clk 0:01:32]} 0-1


[Site "https://www.chess.com"]

[Event "Titled Tuesday Blitz July 4 Late 2023"]
[White "Carlsen, Magnus"]
[Black "Bluebaum, Matthias"]
[WhiteFideId "1503014"]
[BlackFideId "24651516"]
[WhiteElo "3262"]
[BlackElo "3043"]
[Result "1-0"]
[Round "7"]
[TimeControl "180+2"]
[Date "2023.07.04"]
[WhiteClock "0:01:23"]
[BlackClock "0:00:14"]
[Board "1"]

1. a3 {[%clk 0:03:00]}  d5 {[%clk 0:02:58]} 2. Nf3 {[%clk 0:02:58]}  Nf6 {[%clk 0:02:56]} 3. d4 {[%clk 0:02:58]}  e6 {[%clk 0:02:51]} 4. Bf4 {[%clk 0:02:56]}  Bd6 {[%clk 0:02:47]} 5. e3 {[%clk 0:02:57]}  c5 {[%clk 0:02:43]} 6. dxc5 {[%clk 0:02:56]}  Bxc5 {[%clk 0:02:40]} 7. c4 {[%clk 0:02:56]}  O-O {[%clk 0:02:38]} 8. Nc3 {[%clk 0:02:56]}  Nc6 {[%clk 0:02:38]} 9. Qc2 {[%clk 0:02:57]}  Be7 {[%clk 0:02:34]} 10. Rd1 {[%clk 0:02:53]}  Qa5 {[%clk 0:02:28]} 11. Be2 {[%clk 0:02:53]}  dxc4 {[%clk 0:02:22]} 12. Bxc4 {[%clk 0:02:54]}  Bd7 {[%clk 0:02:21]} 13. O-O {[%clk 0:02:51]}  Rfd8 {[%clk 0:02:18]} 14. e4 {[%clk 0:02:49]}  Be8 {[%clk 0:02:13]} 15. e5 {[%clk 0:02:42]}  Nd7 {[%clk 0:02:13]} 16. Qe2 {[%clk 0:02:39]}  Nf8 {[%clk 0:02:12]} 17. h4 {[%clk 0:02:37]}  Rxd1 {[%clk 0:02:04]} 18. Rxd1 {[%clk 0:02:38]}  Rd8 {[%clk 0:02:04]} 19. Bd3 {[%clk 0:02:38]}  Rd7 {[%clk 0:01:26]} 20. h5 {[%clk 0:02:37]}  h6 {[%clk 0:01:25]} 21. Ne4 {[%clk 0:02:34]}  Qd8 {[%clk 0:01:18]} 22. Nd6 {[%clk 0:02:29]}  Nxe5 {[%clk 0:01:14]} 23. Bxe5 {[%clk 0:02:29]}  Bxd6 {[%clk 0:01:13]} 24. Bb5 {[%clk 0:02:29]}  Bxe5 {[%clk 0:01:02]} 25. Bxd7 {[%clk 0:02:29]}  Bf6 {[%clk 0:00:49]} 26. Bxe6 {[%clk 0:02:26]}  Qe7 {[%clk 0:00:49]} 27. Bc4 {[%clk 0:02:27]}  Qxe2 {[%clk 0:00:49]} 28. Bxe2 {[%clk 0:02:28]}  Bxb2 {[%clk 0:00:50]} 29. Rd8 {[%clk 0:02:28]}  Bc6 {[%clk 0:00:47]} 30. Bc4 {[%clk 0:02:29]}  b5 {[%clk 0:00:19]} 31. Bd5 {[%clk 0:02:13]}  Bxd5 {[%clk 0:00:17]} 32. Rxd5 {[%clk 0:02:13]}  Bxa3 {[%clk 0:00:17]} 33. Rxb5 {[%clk 0:02:14]}  Ne6 {[%clk 0:00:16]} 34. Rb8+ {[%clk 0:02:14]}  Bf8 {[%clk 0:00:14]} 35. Ra8 {[%clk 0:02:11]}  Nf4 {[%clk 0:00:11]} 36. Ne5 {[%clk 0:02:11]}  Ne6 {[%clk 0:00:09]} 37. Nd7 {[%clk 0:02:11]}  g6 {[%clk 0:00:08]} 38. hxg6 {[%clk 0:02:06]}  fxg6 {[%clk 0:00:09]} 39. Kh2 {[%clk 0:02:02]}  Kg7 {[%clk 0:00:09]} 40. Nxf8 {[%clk 0:02:01]}  Nxf8 {[%clk 0:00:10]} 41. Rxa7+ {[%clk 0:02:02]}  Kf6 {[%clk 0:00:11]} 42. Kg3 {[%clk 0:01:59]}  Ne6 {[%clk 0:00:11]} 43. Kf3 {[%clk 0:02:00]}  h5 {[%clk 0:00:11]} 44. Ke3 {[%clk 0:01:57]}  Kf5 {[%clk 0:00:11]} 45. Ra5+ {[%clk 0:01:56]}  Kf6 {[%clk 0:00:12]} 46. Ke4 {[%clk 0:01:56]}  Ng5+ {[%clk 0:00:11]} 47. Kd5 {[%clk 0:01:57]}  Nf7 {[%clk 0:00:12]} 48. Ra4 {[%clk 0:01:52]}  Kf5 {[%clk 0:00:11]} 49. g3 {[%clk 0:01:44]}  g5 {[%clk 0:00:10]} 50. Ra8 {[%clk 0:01:41]}  Kf6 {[%clk 0:00:08]} 51. Ra7 {[%clk 0:01:32]}  h4 {[%clk 0:00:06]} 52. g4 {[%clk 0:01:27]}  h3 {[%clk 0:00:03]} 53. Ra6+ {[%clk 0:01:26]}  Kg7 {[%clk 0:00:04]} 54. Ke6 {[%clk 0:01:25]}  Nh6 {[%clk 0:00:04]} 55. f3 {[%clk 0:01:24]}  Kg6 {[%clk 0:00:02]} 56. Ke5+ {[%clk 0:01:23]}  Kg7 {[%clk 0:00:03]} 57. Ra2 {[%clk 0:01:22]}  Kg6 {[%clk 0:00:02]} 58. Rh2 {[%clk 0:01:22]}  Nf7+ {[%clk 0:00:03]} 59. Ke6 {[%clk 0:01:21]}  Nd8+ {[%clk 0:00:04]} 60. Kd5 {[%clk 0:01:21]}  Nb7 {[%clk 0:00:01]} 61. Rxh3 {[%clk 0:01:21]}  Nd8 {[%clk 0:00:02]} 62. Rh8 {[%clk 0:01:21]}  Nf7 {[%clk 0:00:03]} 63. Rg8+ {[%clk 0:01:20]}  Kf6 {[%clk 0:00:04]} 64. Rf8 {[%clk 0:01:20]}  Ke7 {[%clk 0:00:05]} 65. Rxf7+ {[%clk 0:01:21]}  Kxf7 {[%clk 0:00:06]} 66. Ke5 {[%clk 0:01:21]}  Kg7 {[%clk 0:00:06]} 67. Ke6 {[%clk 0:01:22]}  Kh6 {[%clk 0:00:07]} 68. Kf6 {[%clk 0:01:22]}  Kh7 {[%clk 0:00:08]} 69. Kxg5 {[%clk 0:01:23]}  Kh8 {[%clk 0:00:09]} 70. Kg6 {[%clk 0:01:22]}  Kg8 {[%clk 0:00:10]} 71. g5 {[%clk 0:01:22]}  Kh8 {[%clk 0:00:11]} 72. Kf7 {[%clk 0:01:22]}  Kh7 {[%clk 0:00:11]} 73. g6+ {[%clk 0:01:23]}  Kh8 {[%clk 0:00:12]} 74. g7+ {[%clk 0:01:23]}  Kh7 {[%clk 0:00:13]} 75. g8=Q+ {[%clk 0:01:24]}  Kh6 {[%clk 0:00:14]} 76. Qg6# {[%clk 0:01:23]} 1-0


[Site "https://www.chess.com"]

[Event "Titled Tuesday Blitz July 4 Late 2023"]
[White "Mamedov, Rauf"]
[Black "Andreikin, Dmitry"]
[WhiteFideId "13401653"]
[BlackFideId "4158814"]
[WhiteElo "3060"]
[BlackElo "2981"]
[Result "1/2-1/2"]
[Round "7"]
[TimeControl "180+2"]
[Date "2023.07.04"]
[WhiteClock "0:01:06"]
[BlackClock "0:01:54"]
[Board "3"]

1. e4 {[%clk 0:03:00]}  c5 {[%clk 0:02:58]} 2. c3 {[%clk 0:03:00]}  d5 {[%clk 0:02:56]} 3. exd5 {[%clk 0:02:59]}  Qxd5 {[%clk 0:02:57]} 4. Nf3 {[%clk 0:02:59]}  g6 {[%clk 0:02:54]} 5. d4 {[%clk 0:02:59]}  Bg7 {[%clk 0:02:54]} 6. Na3 {[%clk 0:02:57]}  Nf6 {[%clk 0:02:55]} 7. Bc4 {[%clk 0:02:55]}  Qe4+ {[%clk 0:02:55]} 8. Be3 {[%clk 0:02:49]}  O-O {[%clk 0:02:55]} 9. h3 {[%clk 0:02:29]}  cxd4 {[%clk 0:02:48]} 10. Qxd4 {[%clk 0:02:26]}  Nc6 {[%clk 0:02:46]} 11. Qxe4 {[%clk 0:02:23]}  Nxe4 {[%clk 0:02:47]} 12. O-O {[%clk 0:02:20]}  Nd6 {[%clk 0:02:44]} 13. Bd5 {[%clk 0:02:13]}  Rd8 {[%clk 0:02:42]} 14. Rad1 {[%clk 0:02:12]}  Bd7 {[%clk 0:02:40]} 15. Rfe1 {[%clk 0:02:09]}  Bf6 {[%clk 0:02:26]} 16. Bf4 {[%clk 0:01:54]}  Be8 {[%clk 0:02:24]} 17. g4 {[%clk 0:01:48]}  Kf8 {[%clk 0:01:57]} 18. Bh6+ {[%clk 0:01:38]}  Bg7 {[%clk 0:01:54]} 19. Bg5 {[%clk 0:01:34]}  Bf6 {[%clk 0:01:54]} 20. Bh6+ {[%clk 0:01:17]}  Bg7 {[%clk 0:01:54]} 21. Bg5 {[%clk 0:01:15]}  Bf6 {[%clk 0:01:54]} 22. Bh6+ {[%clk 0:01:06]} 1/2-1/2


[Site "https://www.chess.com"]